[Event "8th Montevideo Open 2025"]
[Site "Montevideo"]
[Date "2025.02.08"]
[Round "9.16"]
[White "Sanguinetti, Eduardo"]
[Black "Pichuaga, Juan Pablo"]
[Result "0-1"]
[Annotator "NA RC"]
[ECO "C14"]
[WhiteElo "1776"]
[BlackElo "1973"]
[PlyCount "88"]
[EventDate "2025.02.01"]
[EventType "swiss"]
[EventCountry "URU"]
[SourceTitle "playchess.com"]
[Source "ChessBase"]
[SourceQuality "1"]
[TimeControl "5400+30"]

1. e4 {[%emt 0:00:04]} e6 {[%emt 0:00:29]} 2. d4 {[%emt 0:00:04]} d5 {[%emt 0:00:05]} 3. Nc3 Nf6 {[%emt 0:00:36]} 4. Bg5 {[%emt 0:00:39]} Be7 {[%emt 0:06:05]} 5. e5 {[%emt 0:04:41]} Nfd7 {[%emt 0:00:34]} 6. Bxe7 {[%emt 0:00:08]} Qxe7 {[%emt 0:00:07]} 7. Nf3 {[%emt 0:00:49]} a6 {[%emt 0:00:52]} 8. Bd3 {[%emt 0:00:33]} c5 {[%emt 0:00:36]} 9. dxc5 {[%emt 0:06:07]} Nxc5 {[%emt 0:00:42]} 10. O-O {[%emt 0:00:34]} Nc6 {[%emt 0:01:44]} 11. Re1 {[%emt 0:02:15]} Bd7 {[%emt 0:04:29]} 12. Bf1 {[%emt 0:00:49]} b5 {[%emt 0:07:38]} 13. a3 {[%emt 0:01:05]} b4 {[%emt 0:09:06]} 14. axb4 {[%emt 0:01:51]} Nxb4 {[%emt 0:00:23]} 15. Nb5 {[%emt 0:06:36]} O-O {[%emt 0:02:14]} 16. Nbd4 {[%emt 0:00:34]} a5 {[%emt 0:03:22]} 17. c3 {[%emt 0:03:58]} Nc6 {[%emt 0:00:48]} 18. Nxc6 {[%emt 0:02:10]} Bxc6 {[%emt 0:00:08]} 19. Nd4 {[%emt 0:00:53]} Bd7 {[%emt 0:03:20]} 20. Nb3 {[%emt 0:03:16]} Nxb3 {[%emt 0:00:57]} 21. Qxb3 {[%emt 0:00:09]} Rab8 {[%emt 0:03:29]} 22. Qc2 {[%emt 0:02:14]} a4 {[%emt 0:00:42]} 23. Bd3 {[%emt 0:02:32]} g6 {[%emt 0:04:28]} 24. Qd2 {[%emt 0:00:52]} Rfc8 {[%emt 0:01:19]} 25. Re3 {[%emt 0:07:51]} Rc7 {[%emt 0:03:19]} 26. Rh3 {[%emt 0:01:38]} Qf8 {[%emt 0:00:32]} 27. f4 {[%emt 0:07:08]} Rcb7 {[%emt 0:04:13]} 28. Rb1 {[%emt 0:00:21]} Rb3 {[%emt 0:00:40]} 29. Qc1 {[%emt 0:05:40]} h5 {[%emt 0:05:38]} 30. Bc2 {[%emt 0:05:42]} R3b7 {[%emt 0:00:55]} 31. Rg3 {[%emt 0:02:16]} Qc5+ {[%emt 0:02:36]} 32. Kh1 {[%emt 0:00:55]} h4 {[%emt 0:10:58]} 33. Rh3 {[%emt 0:05:44]} Qf2 {[%emt 0:03:16]} 34. Rf3 {[%emt 0:00:46]} Qe2 {[%emt 0:01:16]} 35. Re3 {[%emt 0:01:55]} Qf2 {[%emt 0:01:06]} 36. Rf3 {[%emt 0:00:07]} Qc5 {[%emt 0:00:56]} 37. Rh3 {[%emt 0:00:29]} Qe7 {[%emt 0:00:08]} 38. Kg1 {[%emt 0:05:40]} Bc6 {[%emt 0:00:50]} 39. Rd3 {[%emt 0:01:57]} Qc5+ {[%emt 0:00:54]} 40. Rd4 {[%emt 0:00:28]} a3 {[%emt 0:01:32]} 41. bxa3 {[%emt 0:00:40]} Qxc3 {[%emt 0:01:35]} 42. Rdb4 {[%emt 0:00:59]} Rxb4 {[%emt 0:01:16]} 43. Rxb4 {[%emt 0:01:20]} Rxb4 {[%emt 0:00:18]} 44. axb4 {[%emt 0:00:04]} Ba4 {[%emt 0:00:00]} 0-1

[Event "8th Montevideo Open 2025"]
[Site "Montevideo"]
[Date "2025.02.08"]
[Round "9.17"]
[White "Cayetano, Juan"]
[Black "Volpe, Agustin"]
[Result "1-0"]
[Annotator "RC"]
[ECO "B13"]
[WhiteElo "1940"]
[BlackElo "1873"]
[PlyCount "100"]
[EventDate "2025.02.01"]
[EventType "swiss"]
[EventCountry "URU"]
[SourceTitle "playchess.com"]
[Source "ChessBase"]
[SourceQuality "1"]
[TimeControl "5400+30"]

1. e4 {[%emt 0:00:02]} c6 {[%emt 0:00:13]} 2. d4 {[%emt 0:00:06]} d5 {[%emt 0:00:10]} 3. exd5 cxd5 {[%emt 0:00:07]} 4. Bd3 Nc6 5. c3 {[%emt 0:00:20]} Qc7 {[%emt 0:00:15]} 6. Bg5 {[%emt 0:02:58]} g6 {[%emt 0:02:16]} 7. Qf3 {[%emt 0:01:42]} e6 {[%emt 0:02:04]} 8. Ne2 {[%emt 0:03:32]} Bg7 {[%emt 0:01:29]} 9. h4 {[%emt 1:26:20]} h6 {[%emt 0:01:08]} 10. Bf4 {[%emt 0:03:19]} Qb6 {[%emt 0:01:33]} 11. b3 {[%emt 0:00:55]} Nge7 {[%emt 0:00:56]} 12. Qg3 {[%emt 0:04:49]} Qd8 {[%emt 0:05:03]} 13. Nd2 {[%emt 0:00:49]} Bd7 {[%emt 0:00:36]} 14. Nf3 {[%emt 0:00:55]} Qa5 {[%emt 0:07:06]} 15. b4 {[%emt 0:04:01]} Nxb4 {[%emt 0:03:22]} 16. cxb4 {[%emt 0:00:51]} Qxb4+ {[%emt 0:00:05]} 17. Nd2 {[%emt 0:01:44]} Qa4 {[%emt 0:12:05]} 18. O-O {[%emt 1:07:17]} Bc6 {[%emt 0:28:43]} 19. Be5 {[%emt 0:02:14]} Bxe5 {[%emt 0:06:06]} 20. Qxe5 {[%emt 0:00:07]} Rf8 {[%emt 0:05:41]} 21. Rfc1 {[%emt 0:01:39]} Qa3 {[%emt 0:05:06]} 22. Nc3 {[%emt 0:08:31]} Rd8 {[%emt 0:03:45]} 23. Bb5 {[%emt 0:52:37]} Qd6 {[%emt 0:00:58]} 24. Qxd6 {[%emt 0:00:47]} Rxd6 {[%emt 0:00:06]} 25. Rab1 {[%emt 0:00:33]} Nf5 {[%emt 0:02:01]} 26. Nf3 {[%emt 0:00:27]} Ke7 {[%emt 0:03:47]} 27. Bxc6 {[%emt 0:01:06]} bxc6 {[%emt 0:00:21]} 28. Rb7+ {[%emt 0:01:09]} Rd7 {[%emt 0:00:06]} 29. Rcb1 {[%emt 0:00:19]} Nd6 {[%emt 0:01:05]} 30. Rxd7+ {[%emt 0:00:38]} Kxd7 {[%emt 0:00:04]} 31. Na4 {[%emt 0:00:22]} Kc7 {[%emt 0:00:26]} 32. Nc5 {[%emt 0:00:37]} Rc8 {[%emt 0:02:14]} 33. Ne5 {[%emt 0:50:45]} Ra8 {[%emt 0:01:02]} 34. Na6+ {[%emt 0:00:35]} Kc8 {[%emt 0:01:52]} 35. Rc1 {[%emt 0:01:22]} Nc4 {[%emt 0:01:08]} 36. Nxc4 {[%emt 0:01:22]} dxc4 {[%emt 0:00:05]} 37. Rxc4 {[%emt 0:00:05]} Kb7 {[%emt 0:00:30]} 38. Nb4 {[%emt 0:01:17]} Rc8 {[%emt 0:00:11]} 39. Kf1 {[%emt 0:02:01]} a5 {[%emt 0:00:20]} 40. Nd3 {[%emt 0:00:12]} Kb6 {[%emt 0:01:19]} 41. a4 {[%emt 0:00:15]} Rc7 {[%emt 0:01:03]} 42. Ke2 {[%emt 0:00:20]} g5 {[%emt 0:00:29]} 43. hxg5 {[%emt 0:02:02]} hxg5 {[%emt 0:05:04]} 44. Ke3 {[%emt 0:45:27]} f6 {[%emt 0:00:06]} 45. f4 {[%emt 0:01:54]} gxf4+ {[%emt 0:00:23]} 46. Kxf4 {[%emt 0:00:40]} Rh7 {[%emt 0:01:23]} 47. Nc5 {[%emt 0:02:46]} e5+ {[%emt 0:03:17]} 48. dxe5 {[%emt 0:01:43]} fxe5+ {[%emt 0:00:56]} 49. Kf5 {[%emt 0:01:47]} Rh5+ {[%emt 0:01:05]} 50. Kg6 {[%emt 0:00:38]} Rh2 {[%emt 0:01:15]} 1-0

[Event "8th Montevideo Open 2025"]
[Site "Montevideo"]
[Date "2025.02.08"]
[Round "9.19"]
[White "Errazola, Mauricio"]
[Black "Fabra, Nahiara"]
[Result "1-0"]
[Annotator "NA RC"]
[ECO "D02"]
[WhiteElo "1891"]
[BlackElo "1792"]
[PlyCount "69"]
[EventDate "2025.02.01"]
[EventType "swiss"]
[EventCountry "URU"]
[SourceTitle "playchess.com"]
[Source "ChessBase"]
[SourceQuality "1"]
[TimeControl "5400+30"]

1. d4 {[%emt 0:00:17]} d5 {[%emt 0:00:07]} 2. Nf3 {[%emt 0:00:11]} h6 {[%emt 0:02:11]} 3. c4 {[%emt 0:00:08]} e6 {[%emt 0:00:04]} 4. g3 {[%emt 0:00:04]} Nf6 {[%emt 0:00:12]} 5. Bg2 {[%emt 0:00:04]} Bd6 {[%emt 0:00:14]} 6. O-O {[%emt 0:00:10]} O-O {[%emt 0:00:36]} 7. Qc2 {[%emt 0:00:25]} b6 {[%emt 0:00:26]} 8. a3 {[%emt 0:06:15]} Nbd7 {[%emt 0:06:49]} 9. b4 {[%emt 0:08:06]} c5 {[%emt 0:12:54]} 10. cxd5 {[%emt 0:01:13]} exd5 {[%emt 0:02:22]} 11. Rd1 {[%emt 0:07:09]} cxb4 {[%emt 0:03:02]} 12. Nh4 {[%emt 0:14:49]} Re8 {[%emt 0:18:36]} 13. Nf5 {[%emt 0:05:31]} Bf8 {[%emt 0:09:24]} 14. axb4 {[%emt 0:07:09]} Nb8 {[%emt 0:16:47]} 15. Nc3 {[%emt 0:04:23]} Bxb4 {[%emt 0:02:47]} 16. Nb5 {[%emt 0:15:52]} a5 {[%emt 0:11:04]} 17. Bf4 {[%emt 0:01:13]} Ba6 {[%emt 0:04:56]} 18. Nc7 {[%emt 0:08:24]} Rxe2 {[%emt 0:00:23]} 19. Qc1 {[%emt 0:00:06]} Ra7 {[%emt 0:01:50]} 20. Nxa6 {[%emt 0:00:57]} Nxa6 {[%emt 0:00:42]} 21. Nxh6+ {[%emt 0:00:47]} gxh6 {[%emt 0:01:05]} 22. Bxh6 {[%emt 0:00:02]} Nh7 {[%emt 0:03:14]} 23. Qf4 {[%emt 0:00:20]} Qf6 {[%emt 0:00:43]} 24. Qg4+ {[%emt 0:01:46]} Qg6 {[%emt 0:01:23]} 25. Qxe2 {[%emt 0:00:50]} Qxh6 {[%emt 0:00:02]} 26. Bxd5 {[%emt 0:00:31]} Qd6 {[%emt 0:01:01]} 27. Bc4 {[%emt 0:01:28]} Nc7 {[%emt 0:00:19]} 28. Qg4+ {[%emt 0:00:39]} Kf8 {[%emt 0:00:31]} 29. Rd3 {[%emt 0:02:04]} Nf6 {[%emt 0:00:29]} 30. Qh4 {[%emt 0:00:33]} b5 {[%emt 0:00:31]} 31. Ba2 {[%emt 0:00:39]} Ncd5 {[%emt 0:00:42]} 32. Rc1 {[%emt 0:01:03]} Rc7 {[%emt 0:00:32]} 33. Rxc7 {[%emt 0:01:07]} Qxc7 {[%emt 0:00:13]} 34. Rf3 {[%emt 0:03:14]} Qd6 {[%emt 0:00:40]} 35. Rf5 {[%emt 0:10:31]} 1-0

[Event "8th Montevideo Open 2025"]
[Site "Montevideo"]
[Date "2025.02.08"]
[Round "9.21"]
[White "Perez Selios, Luis"]
[Black "Curi, Gabriel"]
[Result "0-1"]
[Annotator "NA RC"]
[ECO "A43"]
[WhiteElo "1801"]
[BlackElo "2115"]
[PlyCount "105"]
[EventDate "2025.02.01"]
[EventType "swiss"]
[EventCountry "URU"]
[SourceTitle "playchess.com"]
[Source "ChessBase"]
[SourceQuality "1"]
[TimeControl "5400+30"]

1. d4 {[%emt 0:00:07]} c5 {[%emt 0:00:38]} 2. d5 {[%emt 0:00:19]} Nf6 {[%emt 0:00:13]} 3. Nc3 {[%emt 0:00:16]} g6 {[%emt 0:00:19]} 4. e4 {[%emt 0:00:36]} d6 {[%emt 0:00:05]} 5. Be2 {[%emt 0:00:43]} Bg7 {[%emt 0:00:06]} 6. Nf3 {[%emt 0:00:11]} a6 {[%emt 0:00:07]} 7. a4 {[%emt 0:00:09]} O-O {[%emt 0:00:12]} 8. O-O {[%emt 0:00:19]} Bg4 {[%emt 0:05:49]} 9. Nd2 {[%emt 0:01:03]} Bxe2 {[%emt 0:00:09]} 10. Qxe2 {[%emt 0:00:07]} e6 {[%emt 0:01:41]} 11. Rd1 {[%emt 0:02:05]} exd5 {[%emt 0:04:05]} 12. exd5 {[%emt 0:00:39]} Re8 {[%emt 0:00:06]} 13. Qf3 {[%emt 0:00:30]} b6 {[%emt 0:12:20]} 14. Nc4 {[%emt 0:02:10]} Nfd7 {[%emt 0:00:15]} 15. Bf4 {[%emt 0:01:16]} Ne5 {[%emt 0:00:11]} 16. Bxe5 {[%emt 0:00:58]} Bxe5 {[%emt 0:00:31]} 17. g3 {[%emt 0:08:38]} Nd7 {[%emt 0:01:22]} 18. Qd3 {[%emt 0:01:06]} f5 {[%emt 0:13:36]} 19. Ne2 {[%emt 0:02:29]} Qc7 {[%emt 0:10:47]} 20. Kg2 {[%emt 0:04:17]} Rf8 {[%emt 0:06:23]} 21. f4 {[%emt 0:01:58]} Bg7 {[%emt 0:00:30]} 22. Nc3 {[%emt 0:03:19]} Bxc3 {[%emt 0:04:42]} 23. Qxc3 {[%emt 0:00:38]} Nf6 {[%emt 0:00:06]} 24. b4 {[%emt 0:02:48]} Ne4 {[%emt 0:01:37]} 25. Qb3 {[%emt 0:00:29]} b5 {[%emt 0:06:33]} 26. Nd2 {[%emt 0:04:45]} cxb4 {[%emt 0:08:04]} 27. Nxe4 {[%emt 0:01:33]} fxe4 {[%emt 0:00:06]} 28. Qxb4 {[%emt 0:00:23]} e3 {[%emt 0:10:33]} 29. Qe4 {[%emt 0:01:01]} Rfe8 {[%emt 0:00:19]} 30. Qd3 {[%emt 0:00:08]} Rac8 {[%emt 0:00:48]} 31. Rac1 {[%emt 0:02:17]} bxa4 {[%emt 0:04:16]} 32. Re1 {[%emt 0:01:02]} Qc5 {[%emt 0:00:22]} 33. Kf3 {[%emt 0:00:41]} a3 {[%emt 0:01:26]} 34. c4 {[%emt 0:00:14]} Rb8 {[%emt 0:01:56]} 35. Rxe3 {[%emt 0:01:07]} Rxe3+ {[%emt 0:00:27]} 36. Qxe3 {[%emt 0:00:06]} Qxe3+ {[%emt 0:00:05]} 37. Kxe3 {[%emt 0:00:07]} a2 {[%emt 0:00:10]} 38. Ra1 {[%emt 0:00:54]} Rb2 {[%emt 0:00:05]} 39. Kd4 {[%emt 0:00:16]} Kf7 {[%emt 0:00:50]} 40. Kc3 {[%emt 0:00:26]} Rxh2 {[%emt 0:00:09]} 41. Kb3 {[%emt 0:00:08]} h5 {[%emt 0:03:12]} 42. Rxa2 {[%emt 0:00:21]} Rxa2 {[%emt 0:00:23]} 43. Kxa2 {[%emt 0:00:08]} Ke7 {[%emt 0:00:02]} 44. Ka3 {[%emt 0:00:27]} Kd7 {[%emt 0:00:07]} 45. Kb4 {[%emt 0:00:40]} Kc7 {[%emt 0:00:05]} 46. c5 {[%emt 0:07:35]} dxc5+ {[%emt 0:00:22]} 47. Kxc5 {[%emt 0:00:11]} a5 {[%emt 0:00:46]} 48. d6+ {[%emt 0:01:09]} Kd7 {[%emt 0:00:32]} 49. Kd5 {[%emt 0:01:32]} a4 {[%emt 0:00:28]} 50. Ke5 {[%emt 0:00:06]} a3 {[%emt 0:00:04]} 51. Kf6 {[%emt 0:00:05]} a2 {[%emt 0:00:03]} 52. Kxg6 {[%emt 0:00:22]} a1=Q {[%emt 0:00:05]} 53. f5 {[%emt 0:00:13]} 0-1

[Event "8th Montevideo Open 2025"]
[Site "Montevideo"]
[Date "2025.02.08"]
[Round "9.22"]
[White "Manteiga, Franco"]
[Black "de los Reyes, Mauro"]
[Result "1-0"]
[Annotator "NA RC"]
[ECO "A44"]
[WhiteElo "2029"]
[BlackElo "1849"]
[PlyCount "135"]
[EventDate "2025.02.01"]
[EventType "swiss"]
[EventCountry "URU"]
[SourceTitle "playchess.com"]
[Source "ChessBase"]
[SourceQuality "1"]
[TimeControl "5400+30"]

1. d4 {[%emt 0:00:05]} c5 {[%emt 0:00:07]} 2. d5 {[%emt 0:00:29]} e5 {[%emt 0:00:15]} 3. e4 {[%emt 0:00:39]} d6 {[%emt 0:00:15]} 4. Nc3 {[%emt 0:00:14]} Be7 {[%emt 0:00:31]} 5. Nf3 {[%emt 0:00:41]} Bg4 {[%emt 0:00:19]} 6. Be2 {[%emt 0:01:00]} Bxf3 {[%emt 0:00:17]} 7. Bxf3 {[%emt 0:00:07]} Bg5 {[%emt 0:00:31]} 8. O-O {[%emt 0:02:18]} Bxc1 {[%emt 0:00:05]} 9. Qxc1 {[%emt 0:00:11]} Ne7 {[%emt 0:05:12]} 10. Nd1 {[%emt 0:05:21]} O-O {[%emt 0:00:48]} 11. Ne3 {[%emt 0:00:11]} Nd7 {[%emt 0:04:36]} 12. Nc4 {[%emt 0:01:18]} Nf6 {[%emt 0:00:59]} 13. a4 {[%emt 0:00:38]} Ng6 {[%emt 0:01:27]} 14. g3 {[%emt 0:00:14]} h5 {[%emt 0:08:49]} 15. h4 {[%emt 0:12:43]} Ng4 {[%emt 0:06:05]} 16. Bxg4 {[%emt 0:03:45]} hxg4 {[%emt 0:00:20]} 17. Qd1 {[%emt 0:03:56]} Qd7 {[%emt 0:05:37]} 18. Ne3 {[%emt 0:00:48]} Ne7 {[%emt 0:01:18]} 19. c4 {[%emt 0:02:19]} Rad8 {[%emt 0:03:17]} 20. f4 {[%emt 0:04:22]} gxf3 {[%emt 0:02:25]} 21. Qxf3 {[%emt 0:00:14]} Qh3 {[%emt 0:08:08]} 22. Qg2 {[%emt 0:03:09]} Qxg2+ {[%emt 0:01:27]} 23. Kxg2 {[%emt 0:00:04]} f6 {[%emt 0:02:36]} 24. Rf2 {[%emt 0:04:09]} g6 {[%emt 0:03:07]} 25. Raf1 {[%emt 0:00:20]} Kg7 {[%emt 0:00:35]} 26. g4 {[%emt 0:01:46]} Rf7 {[%emt 0:01:28]} 27. Kg3 {[%emt 0:03:25]} Rdf8 {[%emt 0:00:17]} 28. h5 {[%emt 0:02:46]} g5 {[%emt 0:01:26]} 29. Kf3 {[%emt 0:03:29]} a6 {[%emt 0:02:45]} 30. a5 {[%emt 0:03:29]} Kh6 {[%emt 0:00:40]} 31. Ke2 {[%emt 0:00:21]} Kg7 {[%emt 0:00:43]} 32. Kd3 {[%emt 0:01:35]} Rb8 {[%emt 0:02:34]} 33. Kc3 {[%emt 0:01:45]} b5 {[%emt 0:00:58]} 34. axb6 {[%emt 0:03:52]} Rxb6 {[%emt 0:02:57]} 35. b3 {[%emt 0:05:46]} Ng8 {[%emt 0:07:20]} 36. Nf5+ {[%emt 0:08:59]} Kh7 {[%emt 0:01:34]} 37. Rb2 {[%emt 0:00:46]} Nh6 {[%emt 0:01:52]} 38. Nxh6 {[%emt 0:05:20]} Kxh6 {[%emt 0:00:14]} 39. Ra1 {[%emt 0:00:12]} Rfb7 {[%emt 0:00:40]} 40. Ra4 {[%emt 0:05:19]} Rb8 {[%emt 0:09:22]} 41. Ra3 {[%emt 0:02:20]} Kg7 {[%emt 0:01:29]} 42. Kc2 {[%emt 0:01:13]} Kh6 {[%emt 0:01:46]} 43. Kb1 {[%emt 0:00:38]} Kg7 {[%emt 0:00:51]} 44. Ka2 {[%emt 0:00:09]} Kh6 {[%emt 0:00:23]} 45. Ra4 {[%emt 0:01:52]} Ra8 {[%emt 0:00:58]} 46. Ra5 {[%emt 0:03:20]} Rb4 {[%emt 0:01:13]} 47. Kb1 {[%emt 0:01:11]} Rb6 {[%emt 0:00:16]} 48. Kc2 {[%emt 0:00:11]} Rab8 {[%emt 0:00:10]} 49. Kc3 {[%emt 0:00:47]} Kg7 {[%emt 0:00:25]} 50. Rb1 {[%emt 0:03:54]} Kh6 {[%emt 0:00:41]} 51. Ra2 {[%emt 0:01:14]} Kg7 {[%emt 0:01:28]} 52. Ra3 {[%emt 0:00:52]} Kh6 {[%emt 0:00:13]} 53. Rba1 {[%emt 0:00:16]} Ra8 {[%emt 0:00:17]} 54. Ra4 {[%emt 0:00:30]} Rab8 {[%emt 0:02:39]} 55. R1a3 {[%emt 0:00:08]} Ra8 {[%emt 0:00:28]} 56. b4 {[%emt 0:00:51]} cxb4+ 57. Rxb4 {[%emt 0:00:02]} Rxb4 58. Kxb4 {[%emt 0:00:00]} Rb8+ {[%emt 0:01:22]} 59. Kc3 {[%emt 0:00:31]} Rb1 {[%emt 0:00:27]} 60. Rxa6 {[%emt 0:00:20]} Rg1 {[%emt 0:00:48]} 61. Rxd6 {[%emt 0:00:07]} Rxg4 {[%emt 0:00:17]} 62. c5 {[%emt 0:01:08]} Rxe4 {[%emt 0:11:23]} 63. c6 {[%emt 0:02:21]} Re1 {[%emt 0:00:00]} 64. Kd2 {[%emt 0:00:00]} Re4 {[%emt 0:00:00]} 65. c7 {[%emt 0:00:00]} Rc4 {[%emt 0:00:00]} 66. Rc6 {[%emt 0:00:00]} Rd4+ {[%emt 0:00:00]} 67. Ke3 {[%emt 0:00:00]} Rxd5 {[%emt 0:00:00]} 68. c8=Q {[%emt 0:00:00]} 1-0

[Event "8th Montevideo Open 2025"]
[Site "Montevideo"]
[Date "2025.02.08"]
[Round "9.24"]
[White "Lopez Betancourt, Bryan"]
[Black "Lanzilotta, Marcelo"]
[Result "0-1"]
[Annotator "RC"]
[ECO "B22"]
[WhiteElo "1897"]
[BlackElo "1958"]
[PlyCount "130"]
[EventDate "2025.02.01"]
[EventType "swiss"]
[EventCountry "URU"]
[SourceTitle "playchess.com"]
[Source "ChessBase"]
[SourceQuality "1"]
[TimeControl "5400+30"]

1. e4 {[%emt 0:00:01]} c5 {[%emt 0:01:07]} 2. c3 {[%emt 0:00:30]} d5 {[%emt 0:00:30]} 3. exd5 {[%emt 0:00:30]} Qxd5 {[%emt 0:00:30]} 4. Nf3 {[%emt 0:00:30]} Nc6 {[%emt 0:00:30]} 5. d4 {[%emt 0:00:30]} Bg4 {[%emt 0:00:30]} 6. Be2 {[%emt 0:00:30]} e6 {[%emt 0:00:30]} 7. O-O {[%emt 0:00:30]} Nf6 {[%emt 0:00:30]} 8. dxc5 {[%emt 0:00:30]} Bxc5 {[%emt 0:00:30]} 9. Nbd2 {[%emt 0:00:30]} O-O {[%emt 0:00:30]} 10. Qb3 {[%emt 0:00:30]} a6 {[%emt 0:00:30]} 11. h3 {[%emt 0:00:30]} Bh5 {[%emt 0:00:30]} 12. Rd1 {[%emt 0:00:30]} b5 {[%emt 0:00:30]} 13. Qxd5 {[%emt 0:00:30]} Nxd5 {[%emt 0:00:30]} 14. Ne4 {[%emt 0:00:30]} Be7 {[%emt 0:00:30]} 15. Ng3 {[%emt 0:00:30]} Bg6 {[%emt 0:00:30]} 16. Bd3 {[%emt 0:00:30]} f5 {[%emt 0:00:30]} 17. Ng5 {[%emt 0:00:30]} f4 {[%emt 0:00:30]} 18. N3e4 {[%emt 0:00:30]} Bf5 {[%emt 0:00:30]} 19. Nf3 {[%emt 0:00:30]} Rad8 {[%emt 0:00:30]} 20. Bc2 {[%emt 0:00:30]} Rd7 {[%emt 0:00:30]} 21. Nd4 {[%emt 0:00:30]} Nxd4 {[%emt 0:00:30]} 22. Rxd4 {[%emt 0:00:30]} Rfd8 {[%emt 0:00:30]} 23. c4 {[%emt 0:00:30]} Nb4 {[%emt 0:00:30]} 24. Rxd7 {[%emt 0:00:30]} Rxd7 {[%emt 0:00:30]} 25. Bb3 {[%emt 0:00:30]} Bxe4 {[%emt 0:00:30]} 26. cxb5 {[%emt 0:00:30]} Bd5 {[%emt 0:00:30]} 27. Bxd5 {[%emt 0:00:30]} Rxd5 {[%emt 0:00:30]} 28. Bxf4 {[%emt 0:00:30]} axb5 {[%emt 0:00:30]} 29. Re1 {[%emt 0:00:30]} Kf7 {[%emt 0:00:30]} 30. Re3 {[%emt 0:00:30]} Rd1+ {[%emt 0:00:30]} 31. Kh2 {[%emt 0:15:47]} Nd5 {[%emt 1:07:33]} 32. Rf3 {[%emt 0:00:23]} Nxf4 {[%emt 0:00:52]} 33. Rxf4+ {[%emt 0:00:10]} Ke8 {[%emt 0:00:01]} 34. Rg4 {[%emt 0:00:50]} Bf6 {[%emt 0:00:18]} 35. Rb4 {[%emt 0:00:11]} Rd2 {[%emt 0:00:46]} 36. Rxb5 {[%emt 0:00:44]} Rxf2 {[%emt 0:00:03]} 37. Rb6 {[%emt 0:01:05]} Kd7 {[%emt 0:00:20]} 38. Ra6 {[%emt 0:02:41]} Rxb2 {[%emt 0:00:19]} 39. Kg3 {[%emt 0:00:20]} Bd4 {[%emt 0:01:17]} 40. Kf3 {[%emt 0:01:37]} e5 {[%emt 0:00:36]} 41. g3 {[%emt 0:00:38]} Rb6 {[%emt 0:02:23]} 42. Ra8 {[%emt 0:00:46]} Ke6 {[%emt 0:00:31]} 43. Ke4 {[%emt 0:00:21]} Rb1 {[%emt 0:03:57]} 44. Ra6+ {[%emt 0:00:42]} Kf7 {[%emt 0:00:02]} 45. Rc6 {[%emt 0:01:32]} Re1+ {[%emt 0:00:26]} 46. Kf3 {[%emt 0:01:27]} Re3+ {[%emt 0:00:36]} 47. Kg4 {[%emt 0:00:10]} h6 {[%emt 0:01:51]} 48. Rc7+ {[%emt 0:00:25]} Kg6 {[%emt 0:00:01]} 49. Rc6+ {[%emt 0:01:07]} Kh7 {[%emt 0:00:01]} 50. Rd6 {[%emt 0:00:19]} Ra3 {[%emt 0:00:23]} 51. h4 {[%emt 0:00:53]} Rxa2 {[%emt 0:00:08]} 52. Kf3 {[%emt 0:00:07]} Rf2+ {[%emt 0:00:16]} 53. Ke4 {[%emt 0:00:23]} Rf6 {[%emt 0:00:21]} 54. Rd7 {[%emt 0:00:32]} h5 {[%emt 0:00:19]} 55. Rd5 {[%emt 0:00:39]} Ra6 {[%emt 0:01:29]} 56. Rd7 {[%emt 0:00:42]} Ra3 {[%emt 0:00:34]} 57. Rb7 {[%emt 0:01:39]} Rxg3 {[%emt 0:00:11]} 58. Kf5 {[%emt 0:00:49]} Rg4 {[%emt 0:01:15]} 59. Rd7 {[%emt 0:00:15]} Rxh4 {[%emt 0:00:28]} 60. Kg5 {[%emt 0:00:13]} Rh1 {[%emt 0:00:14]} 61. Rc7 {[%emt 0:00:34]} e4 {[%emt 0:01:19]} 62. Rc2 {[%emt 0:00:41]} e3 {[%emt 0:00:28]} 63. Re2 {[%emt 0:00:24]} Rg1+ {[%emt 0:02:14]} 64. Kxh5 {[%emt 0:00:52]} Bf6 {[%emt 0:00:38]} 65. Rg2 {[%emt 0:04:46]} g6+ {[%emt 0:15:13]} 0-1